bitfinex/quotes_SOLUSD_20220211
["timestamp","ask_amount","ask_price","bid_price","bid_amount"]
[1644572513409,43.76236563,105.94,105.9,63.08914076]
[1644572514617,43.76236563,105.94,105.9,67.80914076]
[1644572514833,43.76236563,105.94,105.9,32.4956]
[1644572515532,4.72,105.93,105.9,4.72]
[1644572515732,4.72,105.93,105.88,0.024]
[1644572515733,39.50107162,105.92,105.88,0.024]
[1644572515932,38.85533731,105.9,105.87,25.21548022]
[1644572516132,38.85533731,105.9,105.88,0.024]
[1644572516432,38.85533731,105.9,105.87,2.64738022]
[1644572516633,6.06439994,105.89,105.87,2.64738022]
[1644572518440,38.85533731,105.9,105.87,2.64738022]
[1644572519039,14.1723,105.92,105.87,48.2271002]
[1644572519239,4.721,105.94,105.87,48.2271002]
[1644572519439,4.721,105.94,105.88,0.024]
[1644572520042,40.75726231,105.94,105.88,0.024]
[1644572520243,36.03626231,105.94,105.89,39.98271078]
[1644572520642,36.03626231,105.94,105.89,42.36637869]
[1644572521351,4.72,105.94,105.89,42.36637869]
[1644572521941,4.72,105.94,105.89,39.98271078]
[1644572522142,18.8856,105.97,105.9,4.72]
[1644572522342,41.419673,105.98,105.91,56.75551463]
[1644572522542,41.419673,105.98,105.93,35.62059388]
[1644572522744,41.419673,105.98,105.93,59.11059388]
[1644572523444,41.419673,105.98,105.93,73.27289388]
[1644572523650,46.137673,105.98,105.93,73.27289388]
[1644572524246,4.718,105.98,105.93,59.36059388]
[1644572524445,41.40875997,106.05,105.93,75.90706179]
[1644572524446,18.8772,106.02,105.93,75.90706179]
[1644572524646,4.718,106.04,105.93,75.90706179]
[1644572525047,4.716,106.05,105.93,75.90706179]
[1644572525252,40.00971377,106.04,105.94,45.9293]
[1644572525449,39.71317335,106.02,105.95,48.15467593]
[1644572525650,39.71317335,106.02,105.97,37.31411855]
[1644572526646,39.71317335,106.02,105.97,51.47101855]
[1644572528149,39.71317335,106.02,105.97,56.18701855]
[1644572529950,14.1581,106.03,105.97,56.18701855]
[1644572530150,4.716,106.06,105.97,56.18701855]
[1644572530350,4.716,106.06,105.98,13.61]
[1644572530552,4.716,106.06,105.99,4.716]
[1644572531150,14.1556,106.05,106.0,46.27568019]
[1644572531360,45.03247835,106.06,106.0,46.27568019]
[1644572532754,59.18677835,106.06,106.0,46.27568019]
[1644572532954,45.03247835,106.06,106.0,46.27568019]
[1644572534758,45.03247835,106.06,106.0,60.42868019]
[1644572535157,4.715,106.05,106.0,60.42868019]
[1644572535359,45.48783246,106.04,106.0,60.42868019]
[1644572535557,4.716,106.06,106.0,60.42868019]
[1644572536161,4.716,106.06,106.0,46.27568019]
[1644572536360,18.8705,106.06,106.0,46.27568019]
[1644572536562,40.45687928,106.05,106.0,46.27568019]
[1644572536963,51.8967,106.09,106.0,50.99068019]
[1644572537161,4.715,106.09,106.0,87.2143481]
[1644572537361,4.715,106.09,106.0,114.9769481]
[1644572537563,46.9928,106.1,106.0,114.9769481]
[1644572537861,35.60778916,106.1,106.0,114.9769481]
[1644572538765,14.1506,106.09,106.0,114.9769481]
[1644572538967,44.40809819,106.08,106.0,112.34328019]
[1644572539166,4.715,106.07,106.0,112.34328019]
[1644572539365,46.83717947,106.06,106.0,101.88128019]
[1644572539780,46.83717947,106.06,106.0,41.453]
[1644572539967,46.83717947,106.06,106.0,4.715]
[1644572540993,4.715,106.05,106.0,4.715]
[1644572541192,47.81554481,106.04,106.0,4.715]
[1644572542693,70.58784481,106.04,105.97,4.716]
[1644572542891,4.716,106.03,105.94,4.716]
[1644572543089,4.716,106.03,105.93,47.6642]
[1644572543295,18.326,106.03,105.93,47.6642]
[1644572543490,36.01725911,106.02,105.93,91.64300166]
[1644572543691,4.718,106.01,105.93,91.64300166]
[1644572543891,47.07592893,106.0,105.93,91.64300166]
[1644572544092,61.23912893,106.0,105.93,47.6642]
[1644572544290,4.718,105.99,105.93,47.6642]
[1644572545090,34.81602951,105.98,105.93,92.9824022]
[1644572545796,34.81602951,105.98,105.93,47.6642]
[1644572546893,34.81602951,105.98,105.93,95.92421557]
[1644572547699,34.81602951,105.98,105.93,47.6642]
[1644572547895,43.71302951,105.98,105.93,47.6642]
[1644572550700,34.81602951,105.98,105.93,47.6642]
[1644572551097,48.98102951,105.98,105.91,53.08282408]
[1644572551502,48.98102951,105.98,105.91,55.46649199]
[1644572552098,48.98102951,105.98,105.91,53.08282408]
[1644572552498,48.98102951,105.98,105.91,55.46649199]
[1644572553901,34.81602951,105.98,105.91,55.46649199]
[1644572555201,39.53502951,105.98,105.91,55.46649199]
[1644572556401,18.8812,106.0,105.91,69.32649199]
[1644572556601,4.719,106.0,105.91,69.32649199]
[1644572556804,4.718,106.01,105.91,69.32649199]
[1644572557002,4.718,106.01,105.92,22.7997]
[1644572557202,4.718,106.01,105.93,32.4892]
[1644572557501,4.718,106.01,105.94,37.51757174]
[1644572557502,61.57335646,106.01,105.94,37.51757174]
[1644572558703,61.57335646,106.01,105.94,51.67847174]
[1644572558903,4.718,106.01,105.94,67.92213965]
[1644572559105,4.718,106.04,105.94,67.92213965]
[1644572559303,4.716,106.06,105.95,23.9549]
[1644572559504,4.716,106.06,105.96,13.61]
[1644572559704,4.716,106.06,105.96,15.99366791]
[1644572559904,14.1571,106.04,105.97,44.05941335]
[1644572560112,43.62538086,106.02,105.97,44.05941335]
[1644572561207,48.34138086,106.02,105.97,44.05941335]
[1644572561608,48.34138086,106.02,105.96,27.7674]
[1644572561811,48.34138086,106.02,105.96,13.61]
[1644572562706,62.50088086,106.02,105.96,58.91995859]
[1644572563306,62.50088086,106.02,105.96,13.61]
[1644572563510,71.46288086,106.02,105.94,4.716]
[1644572563708,71.46288086,106.02,105.93,24.9199]
[1644572564510,85.07288086,106.02,105.93,24.9199]
[1644572564709,85.07288086,106.02,105.91,4.716]
[1644572564913,109.88458086,106.02,105.91,4.716]
[1644572565309,111.21585706,106.02,105.91,4.716]
[1644572565509,111.21585706,106.02,105.91,43.64315901]
[1644572565712,109.88458086,106.02,105.91,43.64315901]
[1644572565910,111.21585706,106.02,105.91,43.64315901]
[1644572568310,111.21585706,106.02,105.91,38.92715901]
[1644572568816,1.3312762,106.01,105.91,38.92715901]
[1644572569012,14.1666,105.98,105.91,38.92715901]
[1644572569212,52.82022785,105.97,105.91,38.92715901]
[1644572569613,48.10122785,105.97,105.91,38.92715901]
[1644572570413,48.10122785,105.97,105.91,43.64615901]
[1644572570814,62.26782785,105.97,105.91,43.64615901]
[1644572571613,62.26782785,105.97,105.91,57.81175901]
[1644572572014,62.26782785,105.97,105.91,38.92715901]
[1644572572214,72.38882785,105.97,105.91,38.92715901]
[1644572573417,4.719,105.96,105.91,38.92715901]
[1644572573618,18.8861,105.96,105.9,37.3838]
[1644572574322,14.1671,105.96,105.9,37.3838]
[1644572574519,14.1671,105.96,105.9,73.80347314]
[1644572574819,14.1671,105.96,105.9,37.3838]
[1644572575019,14.1671,105.96,105.9,23.2172]
[1644572575423,4.72,105.95,105.9,23.2172]
[1644572575621,14.1696,105.94,105.9,23.2172]
[1644572575822,14.1696,105.94,105.9,23.1932]
[1644572576025,38.67459558,105.93,105.9,23.1932]
[1644572576221,38.67459558,105.93,105.89,24.2571]
[1644572576424,14.1696,105.94,105.89,24.2331]
[1644572576627,14.1685,105.95,105.9,4.72]
[1644572576824,14.1685,105.95,105.9,4.744]
[1644572577425,37.50537473,105.94,105.9,4.744]
[1644572577625,37.50537473,105.94,105.9,4.72]
[1644572578225,14.1672,105.96,105.9,4.72]
[1644572578424,14.1672,105.96,105.9,4.744]
[1644572579229,54.27068991,105.96,105.9,4.744]
[1644572579428,14.1672,105.96,105.9,18.9109]
[1644572579829,14.1672,105.96,105.9,21.29456791]
[1644572580030,14.166,105.97,105.9,21.29456791]
[1644572580432,54.7882012,105.97,105.9,21.29456791]
[1644572582649,14.166,105.97,105.9,21.29456791]
[1644572582848,14.1643,105.98,105.9,21.54456791]
[1644572583049,14.1643,105.98,105.9,22.85604774]
[1644572583249,14.1643,105.98,105.9,21.54456791]
[1644572583652,4.719,106.0,105.9,43.54604774]
[1644572583850,14.1604,106.01,105.94,14.1604]
[1644572584051,34.7493524,106.02,105.96,44.64282232]
[1644572584849,34.7493524,106.02,105.96,58.80082232]
[1644572588053,34.7493524,106.02,105.97,4.716]
[1644572588254,14.1583,106.03,105.97,18.8735]
[1644572589256,40.14695524,106.02,105.97,18.8735]
[1644572589457,14.1583,106.03,105.97,18.8735]
[1644572590256,47.1972,106.05,105.97,18.8735]
[1644572590257,14.1566,106.04,105.97,18.8735]
[1644572590456,42.91279088,106.03,105.97,18.8735]
[1644572591371,42.91279088,106.03,105.97,19.1235]
[1644572591860,42.91279088,106.03,105.97,14.4075]
[1644572592260,18.8726,106.04,105.97,14.4075]
[1644572592463,14.1566,106.04,105.98,4.716]
[1644572592660,14.1566,106.04,105.98,18.8725]
[1644572593266,49.92799186,106.04,105.98,18.8725]
[1644572595262,4.716,106.03,105.98,18.8725]
[1644572596665,4.716,106.03,105.98,4.716]
[1644572596864,18.8737,106.03,105.98,4.716]
[1644572597069,18.8737,106.03,105.96,44.64282232]
[1644572597274,18.8737,106.03,105.94,22.5139]
[1644572598074,18.8737,106.03,105.94,46.9522]
[1644572598271,18.8737,106.03,105.95,39.28955316]
[1644572600176,17.61646778,106.03,105.95,39.28955316]
[1644572602685,17.61646778,106.03,105.95,44.00555316]
[1644572603379,17.61646778,106.03,105.95,58.16645316]
[1644572604180,3.45876778,106.03,105.96,2.38366791]
[1644572604378,49.92799186,106.04,105.97,4.716]
[1644572609285,4.716,106.03,105.96,43.7305]
[1644572609486,14.1592,106.02,105.96,43.7305]
[1644572613188,21.3182,106.02,105.96,4.716]
[1644572614388,38.93018534,106.0,105.95,53.41230001]
[1644572615788,38.93018534,106.0,105.95,58.13030001]
[1644572616810,38.93018534,106.0,105.95,53.41230001]
[1644572617512,38.93018534,106.0,105.95,14.1607]
[1644572617714,53.09148534,106.0,105.95,14.1607]
[1644572618111,53.09148534,106.0,105.94,74.6411]
[1644572618310,53.09148534,106.0,105.94,61.0311]
[1644572623518,14.1613,106.0,105.94,61.0311]
[1644572623718,4.718,106.03,105.94,61.0311]
[1644572623719,14.1601,106.01,105.94,70.0601]
[1644572623919,48.5315762,106.04,105.94,70.0601]
[1644572623920,1.3312762,106.04,105.95,18.328]
[1644572624119,6.0472762,106.06,105.97,14.1571]
[1644572624320,6.0472762,106.06,105.98,4.716]
[1644572624520,48.11273109,106.05,105.98,45.96113935]
[1644572624721,14.1575,106.03,105.98,45.96113935]
[1644572625324,11.6575,106.03,105.98,45.96113935]
[1644572626024,18.872,106.04,105.98,60.11853935]
[1644572626225,48.11273109,106.05,105.98,72.00720726]
[1644572626425,48.11273109,106.05,105.98,72.25720726]
[1644572627725,14.1536,106.06,105.98,72.25720726]
[1644572628127,14.1536,106.06,105.98,95.43030726]
[1644572628725,39.92043085,106.05,105.98,108.79030726]
[1644572628925,44.63643085,106.05,105.98,101.69063935]
[1644572629926,44.63643085,106.05,105.98,106.40663935]
[1644572631125,39.92043085,106.05,105.98,106.40663935]
[1644572631826,39.92043085,106.05,105.98,106.65663935]
[1644572632228,39.92043085,106.05,105.98,109.04030726]
[1644572632628,14.1536,106.06,105.98,109.04030726]
[1644572632828,4.716,106.08,105.98,109.04030726]
[1644572633028,4.715,106.09,105.98,134.86798709]
[1644572633431,4.715,106.09,105.99,1.31147983]
[1644572633630,40.55418469,106.08,106.02,14.1494]
[1644572634229,40.55418469,106.08,106.02,59.44143787]
[1644572635033,40.55418469,106.08,106.02,14.1494]
[1644572635233,4.714,106.07,106.01,27.7626]
[1644572636134,4.714,106.07,106.01,68.4648532]
[1644572636536,47.6874,106.1,106.01,68.7148532]
[1644572636735,47.6874,106.1,106.02,24.2986]
[1644572636935,4.715,106.11,106.03,18.8631]
[1644572637538,46.11318159,106.1,106.03,19.1131]
[1644572637739,4.714,106.09,106.03,14.3991]
[1644572638338,4.714,106.09,106.03,14.1491]
[1644572638939,18.8637,106.09,106.02,61.4479]
[1644572639338,18.8637,106.09,106.01,40.7022532]
[1644572639741,18.8637,106.09,105.98,20.70766791]
[1644572639942,41.371,106.09,105.99,23.6785]
[1644572640742,41.371,106.09,106.0,49.3825358]
[1644572643071,36.657,106.09,106.01,38.521]
[1644572643271,36.657,106.09,106.01,49.035]
[1644572643472,36.657,106.09,106.01,51.41866791]
[1644572643672,36.657,106.09,106.01,65.02866791]
[1644572644473,36.657,106.09,106.02,18.8646]
[1644572644673,4.714,106.08,106.02,18.8646]
[1644572645976,36.657,106.09,106.02,18.8646]
[1644572646179,18.8658,106.08,106.02,18.8646]
[1644572647178,14.1518,106.08,106.02,18.8646]
[1644572648280,4.714,106.07,106.02,14.1506]
[1644572648579,36.06410963,106.06,106.01,56.8457]
[1644572649880,36.06410963,106.06,106.01,52.1317]
[1644572650087,18.8662,106.08,106.01,52.1317]
[1644572650280,14.1512,106.08,106.01,52.3817]
[1644572650980,40.97192771,106.07,106.01,52.3817]
[1644572651683,4.715,106.08,106.01,52.3817]
[1644572651884,4.715,106.1,106.02,2.38366791]
[1644572652082,24.3318,106.11,106.04,14.1478]
[1644572652281,4.713,106.1,106.04,14.1478]
[1644572652682,48.22536615,106.09,106.05,39.78962884]
[1644572653083,48.22536615,106.09,106.05,53.93742884]
[1644572655389,4.713,106.1,106.05,53.93742884]
[1644572656190,18.8572,106.14,106.05,54.18742884]
[1644572656391,39.22394042,106.13,106.06,24.3533]
[1644572656590,39.22394042,106.13,106.08,14.1435]
[1644572656791,39.22394042,106.13,106.09,44.93443294]
[1644572657392,18.8572,106.14,106.09,44.93443294]
[1644572658194,14.1442,106.14,106.09,44.93443294]
[1644572658394,58.65455915,106.14,106.09,44.93443294]
[1644572659807,14.1442,106.14,106.09,44.93443294]
[1644572662195,4.711,106.13,106.09,44.93443294]
[1644572662996,4.711,106.13,106.09,59.07683294]
[1644572663196,18.8562,106.14,106.09,59.07683294]
[1644572666297,4.712,106.14,106.09,59.07683294]
[1644572666701,54.36436424,106.15,106.09,59.07683294]
[1644572666702,59.07536424,106.15,106.09,59.07683294]
[1644572667099,54.36436424,106.15,106.09,59.07683294]
[1644572670804,54.36436424,106.15,106.09,14.1424]
[1644572671002,18.8545,106.14,106.06,53.075]
[1644572671201,18.8545,106.14,106.06,48.364]
[1644572672104,18.8545,106.14,106.07,47.68451012]
[1644572672906,20.1857762,106.14,106.07,47.68451012]
[1644572673209,18.8545,106.14,106.07,47.68451012]
[1644572673610,20.1857762,106.14,106.07,47.68451012]
[1644572681134,1.3312762,106.13,106.07,47.68451012]
[1644572681433,14.1466,106.12,106.05,18.8598]
[1644572681630,4.713,106.11,106.05,4.712]
[1644572681832,6.0442762,106.12,106.05,4.712]
[1644572682332,43.78375864,106.11,106.05,4.712]
[1644572682532,4.713,106.1,106.05,4.712]
[1644572682735,18.8632,106.1,106.05,4.712]
[1644572684336,18.8632,106.1,106.04,47.19289545]
[1644572685739,14.1502,106.1,106.04,47.19289545]
[1644572685937,4.713,106.09,106.04,47.19289545]
[1644572686240,14.1515,106.08,106.04,47.19289545]
[1644572687842,14.1494,106.09,106.04,47.19289545]
[1644572688042,43.78375864,106.11,106.04,70.10799545]
[1644572688241,43.78375864,106.11,106.05,4.713]
[1644572688642,23.694,106.13,106.05,4.713]
[1644572688845,4.713,106.12,106.05,14.1471]
[1644572689543,50.14005784,106.12,106.05,14.1471]
[1644572689743,14.1468,106.11,106.05,14.1471]
[1644572690143,50.14005784,106.12,106.05,14.1471]
[1644572690344,45.42705784,106.12,106.06,4.713]
[1644572690544,4.713,106.13,106.06,18.8581]
[1644572690744,47.1557,106.14,106.06,21.49176791]
[1644572691043,14.1443,106.13,106.06,45.52556791]
[1644572691844,41.38409599,106.15,106.06,45.52556791]
[1644572692844,14.143,106.14,106.06,45.52556791]
[1644572693445,14.143,106.14,106.06,45.27556791]
[1644572693745,14.143,106.14,106.06,42.8919]
[1644572694145,18.856,106.13,106.06,38.1789]
[1644572694346,14.144,106.13,106.06,38.1789]
[1644572694545,4.712,106.12,106.06,38.1789]
[1644572694746,4.712,106.14,106.06,38.1789]
[1644572695849,14.1456,106.12,106.06,38.1789]
[1644572697049,48.38495607,106.11,106.06,38.1789]
[1644572698252,53.09795607,106.11,106.06,38.1789]
[1644572698454,4.713,106.11,106.06,38.1789]
[1644572699256,14.1456,106.12,106.06,38.1789]
[1644572699556,58.66049909,106.12,106.06,38.1789]
[1644572700656,14.1456,106.12,106.06,38.1789]
[1644572700858,1.3312762,106.15,106.07,4.712]
[1644572701059,6.0432762,106.16,106.09,14.1413]
[1644572701259,6.0422762,106.17,106.09,22.8893]
[1644572701457,25.1911762,106.18,106.09,29.98396791]
[1644572701660,42.542283,106.17,106.1,69.66322613]
[1644572701858,14.1403,106.16,106.1,69.91322613]
[1644572702285,14.1403,106.16,106.1,69.66322613]
[1644572702458,42.542283,106.17,106.1,83.80292613]
[1644572702757,47.252283,106.17,106.1,83.80292613]
[1644572703558,61.391583,106.17,106.1,83.80292613]
[1644572703961,62.7228592,106.17,106.1,69.66322613]
[1644572705461,62.7228592,106.17,106.1,24.9237]
[1644572705662,65.10652711,106.17,106.08,23.6278]
[1644572705862,14.1449,106.14,106.08,23.6278]
[1644572706064,4.712,106.13,106.08,23.6278]
[1644572706464,6.0432762,106.15,106.08,61.09810559]
[1644572706865,14.1454,106.13,106.05,4.711]
[1644572707064,4.712,106.12,106.05,4.711]
[1644572707262,9.93666791,106.12,106.05,4.711]
[1644572707467,4.713,106.11,106.05,4.711]
[1644572707665,7.09666791,106.11,106.05,4.711]
[1644572707964,50.25697204,106.1,106.05,4.711]
[1644572708166,64.40577204,106.1,106.02,22.7217]
[1644572708365,64.40577204,106.1,106.0,14.1535]
[1644572708366,7.09766791,106.09,106.0,14.1535]
[1644572708569,15.71666791,106.09,106.0,14.1535]
[1644572708765,2.38366791,106.08,106.0,14.1535]
[1644572708966,4.715,106.07,106.0,14.1535]
[1644572709169,35.44727217,106.06,106.01,44.88995302]
[1644572709366,46.64227217,106.06,106.01,44.88995302]
[1644572709565,60.79637217,106.06,106.01,44.88995302]
[1644572711270,60.79637217,106.06,106.0,14.1535]
[1644572711477,60.79637217,106.06,105.99,23.6277]
[1644572711675,14.1586,106.04,105.98,24.886]
[1644572711971,4.716,106.03,105.98,24.886]
[1644572712175,10.742,106.03,105.98,24.886]
[1644572712471,34.76331666,106.02,105.96,23.658]
[1644572712671,34.76331666,106.02,105.96,0.024]
[1644572712871,34.76331666,106.02,105.96,14.1826]
[1644572713474,34.76331666,106.02,105.97,35.87146515]
[1644572714177,34.76331666,106.02,105.96,14.1826]
[1644572714974,34.76331666,106.02,105.96,0.024]
[1644572715175,48.92341666,106.02,105.96,45.01343693]
[1644572717299,48.92341666,106.02,105.96,0.024]
[1644572717700,4.716,106.01,105.96,0.024]
[1644572717901,14.1635,106.0,105.96,0.024]
[1644572718101,14.1635,106.0,105.94,154.23293574]
[1644572718302,14.1635,106.0,105.94,189.49382303]
[1644572718502,14.1635,106.0,105.95,4.718]
[1644572718701,14.1635,106.0,105.95,4.742]
[1644572719507,14.1618,106.01,105.95,4.742]
[1644572719705,14.1618,106.01,105.96,0.024]
[1644572720003,4.716,106.03,105.96,0.024]
[1644572720204,69.8814,106.05,105.96,0.024]
[1644572720404,4.716,106.04,105.96,0.024]
[1644572720606,14.1604,106.03,105.96,0.024]
[1644572720908,41.66479501,106.01,105.96,0.024]
[1644572721205,4.716,106.0,105.96,0.024]
[1644572721407,41.66479501,106.01,105.96,0.024]
[1644572721605,55.82779501,106.01,105.96,0.024]
[1644572722007,14.163,106.01,105.96,0.024]
[1644572723205,39.89925001,106.0,105.96,0.024]
[1644572723406,4.716,105.99,105.96,0.024]
[1644572723606,4.716,105.99,105.95,27.5246]
[1644572724207,12.158,105.99,105.95,4.716]
[1644572724608,14.54166791,105.99,105.93,116.67963574]
[1644572724809,14.54166791,105.99,105.94,0.024]
[1644572725106,14.54166791,105.99,105.93,116.67963574]
[1644572725507,14.54166791,105.99,105.93,116.70363574]
[1644572725705,28.70626791,105.99,105.93,116.70363574]
[1644572726709,28.70626791,105.99,105.93,116.67963574]
[1644572729107,18.8806,105.99,105.93,116.67963574]
[1644572731111,21.26426791,105.99,105.93,116.67963574]
[1644572731710,18.8806,105.99,105.93,116.67963574]
[1644572732412,18.8806,105.99,105.92,0.024]
[1644572733210,60.8237,106.02,105.93,4.718]
[1644572733410,14.1626,106.01,105.94,0.024]
[1644572733614,4.718,106.05,105.95,4.718]
[1644572733810,4.716,106.06,105.96,0.024]
[1644572734013,42.43326213,106.07,105.98,40.45682514]
[1644572734211,4.715,106.06,105.99,4.715]
[1644572734411,14.1576,106.05,105.99,14.617]
[1644572736515,18.8698,106.06,105.99,28.7722]
[1644572736715,14.1548,106.06,105.99,28.7722]
[1644572737414,4.716,106.08,105.99,42.6322]
[1644572737617,4.715,106.1,105.99,69.14866791]
[1644572738215,45.49553669,106.1,105.99,69.14866791]
[1644572738614,45.49553669,106.1,105.99,66.765]
[1644572738815,59.64593669,106.1,105.99,66.765]
[1644572739015,4.714,106.09,105.99,66.765]
[1644572739214,47.1694,106.12,105.99,66.765]
[1644572739215,4.715,106.12,106.0,2.38366791]
[1644572739415,47.02264308,106.16,106.0,2.38366791]
[1644572739416,51.0294,106.15,106.01,18.324]
[1644572739616,51.0294,106.15,106.05,14.1457]
[1644572739816,4.714,106.15,106.05,14.1457]
[1644572740017,7.09766791,106.15,106.05,14.1457]
[1644572740218,39.54154816,106.14,106.06,36.73110336]
[1644572740415,18.8589,106.13,106.06,36.73110336]
[1644572741819,21.24256791,106.13,106.06,36.73110336]
[1644572742018,18.8589,106.13,106.06,36.73110336]
[1644572743921,18.8589,106.13,106.06,50.87630336]
[1644572744423,4.712,106.13,106.06,50.87630336]
[1644572744621,4.712,106.15,106.06,50.87630336]
[1644572744822,4.712,106.16,106.06,58.88930336]
[1644572745022,113.0286,106.18,106.06,120.24860336]
[1644572745221,65.8831,106.18,106.07,4.711]
[1644572745424,14.1422,106.17,106.1,45.83640925]
[1644572745621,4.71,106.16,106.1,57.27140925]
[1644572747023,18.8528,106.16,106.1,45.83640925]
[1644572747222,14.1428,106.16,106.1,45.83640925]
[1644572747424,4.711,106.15,106.1,45.83640925]
[1644572747823,106.54332111,106.18,106.1,45.83640925]
[1644572748025,14.1422,106.17,106.1,45.83640925]
[1644572750625,14.1422,106.17,106.1,59.97650925]
[1644572751124,4.711,106.18,106.1,59.97650925]
[1644572751525,51.74310408,106.18,106.1,59.97650925]
[1644572751727,4.711,106.18,106.1,59.97650925]
[1644572752325,4.71,106.19,106.1,59.97650925]
[1644572752729,43.5781071,106.19,106.1,59.97650925]
[1644572753130,14.1398,106.18,106.1,59.97650925]
[1644572753428,4.71,106.17,106.1,59.97650925]
[1644572755431,18.8481,106.2,106.11,4.71]
[1644572755632,14.1381,106.2,106.13,14.1359]
[1644572755828,4.71,106.21,106.13,14.1359]
[1644572756034,4.708,106.22,106.13,14.1359]
[1644572756329,4.708,106.22,106.14,39.78193553]
[1644572756530,4.708,106.23,106.15,32.4507]
[1644572756731,4.708,106.26,106.16,24.9229]
[1644572756930,4.707,106.29,106.17,18.317]
[1644572757132,4.706,106.31,106.18,24.6667]
[1644572757331,4.706,106.31,106.19,38.0414]
[1644572757529,36.4874478,106.3,106.2,44.63094576]
[1644572757736,4.705,106.29,106.2,51.99894576]
[1644572758331,4.706,106.32,106.21,13.61]
[1644572758732,7.08966791,106.32,106.21,13.61]
[1644572759132,7.08966791,106.32,106.21,37.1397]
[1644572759332,35.27417486,106.31,106.21,37.1397]
[1644572759531,14.1255,106.29,106.21,51.2639]
[1644572759732,4.705,106.28,106.21,51.2639]
[1644572760332,4.706,106.29,106.21,37.1397]
[1644572761835,14.1263,106.28,106.21,37.1397]
[1644572762135,14.1263,106.28,106.21,41.8457]
[1644572762340,4.706,106.3,106.21,41.8457]
[1644572763735,18.8305,106.3,106.21,55.9707]
[1644572764336,18.8305,106.3,106.21,67.5567]
[1644572764737,4.706,106.3,106.21,67.5567]
[1644572764937,4.706,106.3,106.21,67.3067]
[1644572765140,4.706,106.3,106.21,55.9707]
[1644572765141,7.08966791,106.3,106.21,55.9707]
[1644572765943,21.21316791,106.3,106.21,55.9707]
[1644572766242,18.8295,106.3,106.21,55.9707]
[1644572767238,14.1235,106.3,106.21,55.9707]
[1644572767639,4.705,106.31,106.21,56.2207]
[1644572767839,4.705,106.31,106.22,2.38366791]
[1644572768042,0.47249647,106.33,106.25,14.118]
[1644572768239,0.47249647,106.33,106.26,54.75085924]
[1644572768438,0.23521663,106.3,106.26,54.75085924]
[1644572768641,0.23521663,106.3,106.26,55.00085924]
[1644572768841,0.23521663,106.3,106.26,57.38452715]
[1644572769439,0.23521663,106.3,106.28,14.1148]
[1644572769638,0.23521663,106.3,106.29,18.314]
[1644572770041,0.23521663,106.3,106.29,13.61]
[1644572770241,0.23521663,106.3,106.27,40.8426]
[1644572770441,0.23521663,106.3,106.27,36.1396]
[1644572770642,3.03219997,106.29,106.24,37.1616]
[1644572770843,3.03219997,106.29,106.24,13.61]
[1644572770844,18.53239994,106.29,106.24,13.61]
[1644572771042,18.53239994,106.29,106.22,24.3809]
[1644572771246,20.91606785,106.29,106.22,24.3809]
[1644572771643,57.63402858,106.29,106.23,42.89479355]
[1644572771841,71.75892858,106.29,106.23,42.89479355]
[1644572772045,32.65729994,106.29,106.23,42.89479355]
[1644572772242,24.89429994,106.29,106.23,42.89479355]
[1644572773043,45.79653868,106.28,106.23,42.89479355]
[1644572773669,18.8299,106.29,106.23,42.89479355]
[1644572773871,14.1249,106.29,106.23,42.89479355]
[1644572774271,4.705,106.28,106.23,42.89479355]
[1644572774468,14.1249,106.29,106.23,42.89479355]
[1644572774669,52.55825226,106.29,106.23,42.89479355]
[1644572774974,50.17458435,106.29,106.23,42.89479355]
[1644572775169,4.705,106.28,106.23,42.89479355]
[1644572778576,4.705,106.28,106.23,42.87407564]
[1644572778776,37.97993614,106.27,106.23,42.87407564]
[1644572778976,37.97993614,106.27,106.2,13.61]
[1644572779177,4.706,106.26,106.19,23.314]
[1644572780088,4.706,106.26,106.2,43.03409128]
[1644572780278,52.10713614,106.27,106.2,43.03409128]